fUSD/lending_fUSD_20250107
["ID","MTS","AMOUNT","RATE_DAILY","PERIOD"]
[347945395,1736233299725,-500.0,0.00011169,2]
[347945396,1736233299767,-634.16,0.00011169,2]
[347945397,1736233299807,-1511.39,0.00011169,2]
[347945398,1736233299846,-500.0,0.00011169,2]
[347945399,1736233299887,-504.52,0.00011169,2]
[347945400,1736233299927,-603.47,0.00011169,2]
[347945401,1736233299970,-500.0,0.00011169,2]
[347945402,1736233300013,-500.0,0.00011169,2]
[347945403,1736233300054,-631.58,0.00011169,2]
[347945404,1736233300096,-3005.19,0.00011169,2]
[347945405,1736233300139,-500.0,0.00011169,2]
[347945406,1736233300179,-1108.7,0.00011169,2]
[347945407,1736233300223,-678.22,0.00011169,2]
[347945408,1736233300268,-980.72,0.00011169,2]
[347945409,1736233300310,-516.92,0.00011169,2]
[347945410,1736233300354,-500.0,0.00011169,2]
[347945411,1736233300394,-500.0,0.00011169,2]
[347945412,1736233300479,-500.0,0.00011169,2]
[347945413,1736233300521,-874.05,0.00011169,2]
[347945414,1736233300563,-500.0,0.00011169,2]
[347945415,1736233300607,-500.0,0.00011169,2]
[347945416,1736233300650,-500.0,0.00011169,2]
[347945417,1736233300690,-1695.9946811,0.0001117,2]
[347945418,1736233300730,-200.0,0.00011171,2]
[347945419,1736233300769,-1695.9946811,0.00011171,2]
[347945420,1736233300808,-3154.40192881,0.00011175,2]
[347945421,1736233300849,-1906.45004049,0.00011176,2]
[347945422,1736233300892,-1695.9946811,0.00011178,2]
[347945423,1736233300936,-1695.9946811,0.00011184,2]
[347945424,1736233300980,-3154.40192881,0.00011185,2]
[347945425,1736233301021,-3154.40192881,0.00011186,2]
[347945426,1736233301065,-3154.40192881,0.00011187,2]
[347945427,1736233301109,-3154.40192881,0.00011187,2]
[347945428,1736233301152,-10121.65897632,0.00011195,2]
[347945429,1736233301192,-1906.45004049,0.00011195,2]
[347945430,1736233301235,-14367.74408622,0.00011195,2]
[347945431,1736233301278,-6938.88894245,0.00011196,2]
[347945432,1736233301323,-61875.58073542,0.00011196,2]
[347945433,1736233301377,-28633.72671902,0.00011196,2]
[347945434,1736233301422,-200.0,0.00011197,2]
[347945435,1736233301469,-10121.65897632,0.00011197,2]
[347945436,1736233301513,-1906.45004049,0.00011198,2]
[347945437,1736233301556,-14367.74408622,0.00011198,2]
[347945438,1736233301598,-28633.72671902,0.00011198,2]
[347945439,1736233301641,-6938.88894245,0.00011198,2]
[347945440,1736233301682,-1695.9946811,0.00011198,2]
[347945441,1736233301723,-10121.65897632,0.00011199,2]
[347945442,1736233301769,-10121.65897632,0.00011199,2]
[347945443,1736233301811,-1695.9946811,0.000112,2]
[347945444,1736233301851,-61875.58073542,0.000112,2]
[347945445,1736233301892,-355.15,0.00011216,2]
[347945446,1736233301936,-175.581124,0.00011231,2]
[347945447,1736233301978,-152.122056,0.00011231,2]
[347945448,1736233302019,-500.0,0.00011237,2]
[347945449,1736233302061,-500.0,0.00011237,2]
[347945450,1736233302105,-230.81165873,0.00011237,2]
[347945451,1736233302153,-744.75,0.00011237,2]
[347945452,1736233302205,-500.0,0.00011237,2]
[347945453,1736233302261,-500.0,0.00011237,2]
[347945454,1736233302307,-500.0,0.00011237,2]
[347945455,1736233302349,-500.0,0.00011237,2]
[347945456,1736233302393,-150.0,0.0001124,2]
[347945457,1736233302438,-185.003815,0.00011282,2]
[347945458,1736233302483,-180.498302,0.00011282,2]
[347945459,1736233302525,-180.578419,0.00011282,2]
[347945460,1736233302572,-932.63226937,0.00011286,2]
[347945461,1736233302617,-150.0,0.00011287,2]
[347945462,1736233302658,-202.0,0.0001129,2]
[347945463,1736233302699,-208.0,0.0001129,2]
[347945464,1736233302741,-175.581124,0.00011292,2]
[347945465,1736233302781,-293.01825983,0.00011321,2]
[347945466,1736233302823,-150.0,0.00011365,2]
[347945467,1736233302865,-175.581124,0.00011369,2]
[347945468,1736233302906,-152.122056,0.00011369,2]
[347945469,1736233302947,-175.581124,0.00011393,2]
[347945470,1736233302987,-5936.984722,0.000114,2]
[347945471,1736233303030,-932.63226937,0.00011421,2]
[347945472,1736233303071,-500.0,0.0001144,2]
[347945473,1736233303116,-500.0,0.0001144,2]
[347945474,1736233303158,-500.0,0.0001144,2]
[347945475,1736233303201,-274.13575451,0.0001144,2]
[347945476,1736233303248,-500.0,0.0001144,2]
[347945477,1736233303294,-500.0,0.0001144,2]
[347945478,1736233303336,-524.26,0.0001144,2]
[347945479,1736233303381,-500.0,0.0001144,2]
[347945480,1736233303426,-500.0,0.0001144,2]
[347945481,1736233303470,-500.0,0.0001144,2]
[347945482,1736233303514,-953.09,0.0001144,2]
[347945483,1736233303557,-500.0,0.0001144,2]
[347945484,1736233303600,-500.0,0.0001144,2]
[347945485,1736233303642,-500.0,0.0001144,2]
[347945486,1736233303686,-1206.25,0.0001144,2]
[347945487,1736233303728,-1206.25,0.0001144,2]
[347945488,1736233303768,-500.0,0.0001144,2]
[347945489,1736233303809,-500.0,0.0001144,2]
[347945490,1736233303849,-1460.97,0.0001144,2]
[347945491,1736233303889,-1400.09,0.0001144,2]
[347945492,1736233303928,-519.64,0.0001144,2]
[347945493,1736233303968,-554.56,0.0001144,2]
[347945494,1736233304009,-175.581124,0.00011441,2]
[347945495,1736233304051,-152.122056,0.00011441,2]
[347945496,1736233304091,-175.581124,0.00011442,2]
[347945497,1736233304129,-151.0,0.00011443,2]
[347945498,1736233304170,-745.61,0.00011443,2]
[347945499,1736233304212,-2045.53,0.00011443,2]
[347945500,1736233304257,-500.0,0.00011443,2]
[347945501,1736233304300,-500.0,0.00011443,2]
[347945502,1736233304343,-500.0,0.00011443,2]
[347945503,1736233304386,-777.7,0.00011443,2]
[347945504,1736233304429,-436.84405122,0.00011443,2]
[347945505,1736233304473,-500.0,0.00011443,2]
[347945506,1736233304516,-500.0,0.00011443,2]
[347945507,1736233304558,-634.16,0.00011443,2]
[347945508,1736233304602,-1511.39,0.00011443,2]
[347945509,1736233304645,-500.0,0.00011443,2]
[347945510,1736233304687,-504.52,0.00011443,2]
[347945511,1736233304727,-603.47,0.00011443,2]
[347945512,1736233304770,-500.0,0.00011443,2]
[347945513,1736233304813,-500.0,0.00011443,2]
[347945514,1736233304854,-631.58,0.00011443,2]
[347945515,1736233304896,-3005.19,0.00011443,2]
[347945516,1736233304940,-500.0,0.00011443,2]
[347945517,1736233304983,-1108.7,0.00011443,2]
[347945518,1736233305026,-678.22,0.00011443,2]
[347945519,1736233305068,-980.72,0.00011443,2]
[347945520,1736233305111,-516.92,0.00011443,2]
[347945521,1736233305152,-500.0,0.00011443,2]
[347945522,1736233305192,-463.64,0.00011443,2]
[347945523,1736233305235,-500.0,0.00011443,2]
[347945524,1736233305284,-874.05,0.00011443,2]
[347945525,1736233305328,-500.0,0.00011443,2]
[347945526,1736233305370,-500.0,0.00011443,2]
[347945527,1736233305413,-452.41049392,0.00011443,2]
[347945528,1736233305454,-180.498302,0.0001147,2]
[347945529,1736233305495,-90285.08532459,0.0001147,2]
[347945530,1736233305534,-200.0,0.0001147,2]
[347945531,1736233305576,-180.908462,0.00011479,2]
[347945532,1736233305618,-180.908462,0.00011479,2]
[347945533,1736233305659,-1250.62,0.00011479,2]
[347945534,1736233305700,-1250.62,0.00011479,2]
[347945535,1736233305739,-1250.62,0.00011479,2]
[347945536,1736233305779,-1250.62,0.00011479,2]
[347945537,1736233305816,-1250.62,0.00011479,2]
[347945538,1736233305855,-1250.62,0.00011479,2]
[347945539,1736233305892,-1250.62,0.00011479,2]
[347945540,1736233305930,-1250.62,0.00011479,2]
[347945541,1736233305970,-1250.62,0.00011479,2]
[347945542,1736233306015,-1250.62,0.00011479,2]
[347945543,1736233306055,-1250.62,0.00011479,2]
[347945544,1736233306095,-1250.62,0.00011479,2]
[347945545,1736233306135,-1250.62,0.00011479,2]
[347945546,1736233306173,-1250.62,0.00011479,2]
[347945547,1736233306213,-1250.62,0.00011479,2]
[347945548,1736233306259,-1250.62,0.00011479,2]
[347945549,1736233306300,-1250.62,0.00011479,2]
[347945550,1736233306339,-1250.62,0.00011479,2]
[347945551,1736233306379,-1250.62,0.00011479,2]
[347945552,1736233306419,-1250.62,0.00011479,2]
[347945553,1736233306466,-1250.62,0.00011479,2]
[347945554,1736233306508,-1250.62,0.00011479,2]
[347945555,1736233306550,-1250.62,0.00011479,2]
[347945556,1736233306591,-1250.74615924,0.00011479,2]
[347945557,1736233306633,-202.0,0.0001148,2]
[347945558,1736233306674,-208.0,0.0001148,2]
[347945559,1736233306714,-171.0,0.00011499,2]
[347945560,1736233306754,-229810.48915564,0.000115,2]
[347945561,1736233306794,-5002.505,0.000115,2]
[347945562,1736233306834,-175.581124,0.00011505,2]
[347945563,1736233306875,-152.122056,0.00011505,2]
[347945564,1736233306913,-2751.0,0.00011507,2]
[347945565,1736233306954,-500.0,0.00011511,2]
[347945566,1736233306996,-500.0,0.00011511,2]
[347945567,1736233307043,-744.75,0.00011511,2]
[347945568,1736233307089,-500.0,0.00011511,2]
[347945569,1736233307129,-500.0,0.00011511,2]
[347945570,1736233307172,-500.0,0.00011511,2]
[347945571,1736233307214,-500.0,0.00011511,2]
[347945572,1736233307258,-1500.0,0.00011522,2]
[347945573,1736233307304,-932.63226937,0.00011555,2]
[347945574,1736233307348,-180.498302,0.00011564,2]
[347945575,1736233307390,-180.578419,0.00011564,2]
[347945576,1736233307436,-175.581124,0.00011566,2]
[347945577,1736233307481,-205.0,0.0001161,2]
[347945578,1736233307530,-175.581124,0.00011643,2]
[347945579,1736233307575,-152.122056,0.00011643,2]
[347945580,1736233307620,-279.35872757,0.00011647,2]
[347945581,1736233307664,-180.498302,0.00011658,2]
[347945582,1736233307707,-175.581124,0.00011667,2]
[347945583,1736233307747,-202.0,0.0001167,2]
[347945584,1736233307788,-208.0,0.0001167,2]
[347945585,1736233307831,-932.63226937,0.0001169,2]
[347945586,1736233307871,-5000.0,0.000117,2]
[347945587,1736233307910,-1972.16,0.000117,2]
[347945588,1736233307949,-900.0,0.000117,4]
[347945589,1736233307990,-500.0,0.00011714,2]
[347945590,1736233308030,-500.0,0.00011714,2]
[347945591,1736233308071,-278.11148105,0.00011714,2]
[347945592,1736233308114,-624.73240947,0.00011714,2]
[347945593,1736233308157,-500.0,0.00011714,2]
[347945594,1736233308199,-524.26,0.00011714,2]
[347945595,1736233308243,-500.0,0.00011714,2]
[347945596,1736233308288,-411.40574421,0.00011714,2]
[347945597,1736233308332,-500.0,0.00011714,2]
[347945598,1736233308375,-953.09,0.00011714,2]
[347945599,1736233308422,-283.98838489,0.00011714,2]
[347945600,1736233308667,-500.0,0.00011714,2]
[347945601,1736233308716,-500.0,0.00011714,2]
[347945602,1736233308760,-1206.25,0.00011714,2]
[347945603,1736233308801,-1206.25,0.00011714,2]
[347945604,1736233308840,-500.0,0.00011714,2]
[347945605,1736233308880,-428.61,0.00011714,2]
[347945606,1736233308920,-1460.97,0.00011714,2]
[347945607,1736233308962,-1400.09,0.00011714,2]
[347945608,1736233309001,-519.64,0.00011714,2]
[347945609,1736233309049,-554.56,0.00011714,2]
[347945610,1736233309091,-175.581124,0.00011715,2]
[347945611,1736233309134,-152.122056,0.00011715,2]
[347945612,1736233309175,-745.61,0.00011717,2]
[347945613,1736233309216,-2045.53,0.00011717,2]
[347945614,1736233309258,-500.0,0.00011717,2]
[347945615,1736233309299,-500.0,0.00011717,2]
[347945616,1736233309340,-256.37437686,0.00011717,2]
[347945617,1736233309380,-777.7,0.00011717,2]
[347945618,1736233309421,-500.0,0.00011717,2]
[347945619,1736233309460,-500.0,0.00011717,2]
[347945620,1736233309499,-634.16,0.00011717,2]
[347945621,1736233309538,-1511.39,0.00011717,2]
[347945622,1736233309579,-500.0,0.00011717,2]
[347945623,1736233309620,-504.52,0.00011717,2]
[347945624,1736233309660,-603.47,0.00011717,2]
[347945625,1736233309701,-500.0,0.00011717,2]
[347945626,1736233309740,-500.0,0.00011717,2]
[347945627,1736233309781,-631.58,0.00011717,2]
[347945628,1736233309823,-3005.19,0.00011717,2]
[347945629,1736233309864,-500.0,0.00011717,2]
[347945630,1736233309904,-1108.7,0.00011717,2]
[347945631,1736233309946,-678.22,0.00011717,2]
[347945632,1736233309988,-980.72,0.00011717,2]
[347945633,1736233310031,-516.92,0.00011717,2]
[347945634,1736233310074,-500.0,0.00011717,2]
[347945635,1736233310117,-500.0,0.00011717,2]
[347945636,1736233310161,-874.05,0.00011717,2]
[347945637,1736233310203,-500.0,0.00011717,2]
[347945638,1736233310246,-500.0,0.00011717,2]
[347945639,1736233310290,-150.0,0.00011719,2]
[347945640,1736233310333,-150.0,0.00011737,2]
[347945641,1736233310375,-175.581124,0.00011761,2]
[347945642,1736233310414,-180.908462,0.00011779,2]
[347945643,1736233310454,-180.908462,0.00011779,2]
[347945644,1736233310494,-175.581124,0.00011779,2]
[347945645,1736233310547,-152.122056,0.00011779,2]
[347945646,1736233310596,-500.0,0.00011785,2]
[347945647,1736233310640,-500.0,0.00011785,2]
[347945648,1736233310684,-744.75,0.00011785,2]
[347945649,1736233310727,-453.53,0.00011785,2]
[347945650,1736233310771,-500.0,0.00011785,2]
[347945651,1736233310814,-150.0,0.00011788,2]
[347945652,1736233310854,-200.0,0.000118,2]
[347945653,1736233310894,-205.0,0.000118,2]
[347945654,1736233310936,-1461.0,0.000118,4]
[347945655,1736233310979,-30000.0,0.00011822,3]
[347945656,1736233311022,-932.63226937,0.00011824,2]
[347945657,1736233311067,-180.498302,0.00011846,2]
[347945658,1736233311110,-180.498302,0.00011846,2]
[347945659,1736233311161,-180.578419,0.00011846,2]
[347945660,1736233311212,-1768.66905375,0.0001185,2]
[347945661,1736233311256,-202.0,0.0001186,2]
[347945662,1736233311309,-208.0,0.0001186,2]
[347945663,1736233311361,-5503.0,0.000119,2]
[347945664,1736233311412,-170.38744406,0.000119,2]
[347945665,1736233311453,-170.38744401,0.000119,2]
[347945666,1736233311494,-170.38744401,0.000119,2]
[347945667,1736233311533,-170.38744401,0.000119,2]
[347945668,1736233311572,-170.38744401,0.000119,2]
[347945669,1736233311612,-150.0,0.00011905,2]
[347945670,1736233311661,-150.0,0.00011934,2]
[347945671,1736233311706,-150.0,0.00011958,2]
[347945672,1736233311753,-932.63226937,0.00011959,2]
[347945673,1736233311797,-150.0,0.00011986,2]
[347945674,1736233311850,-500.0,0.00011988,2]
[347945675,1736233311904,-500.0,0.00011988,2]
[347945676,1736233311957,-500.0,0.00011988,2]
[347945677,1736233312007,-524.26,0.00011988,2]
[347945678,1736233312064,-370.90073564,0.00011988,2]
[347945679,1736233312114,-500.0,0.00011988,2]
[347945680,1736233312161,-953.09,0.00011988,2]
[347945681,1736233312215,-500.0,0.00011988,2]
[347945682,1736233312267,-500.0,0.00011988,2]
[347945683,1736233312312,-1206.25,0.00011988,2]
[347945684,1736233312358,-206.58965513,0.00011988,2]
[347945685,1736233312417,-1460.97,0.00011988,2]
[347945686,1736233312474,-1400.09,0.00011988,2]
[347945687,1736233312521,-519.64,0.00011988,2]
[347945688,1736233312567,-554.56,0.00011988,2]
[347945689,1736233312615,-175.581124,0.00011989,2]
[347945690,1736233312665,-202.0,0.0001199,2]
[347945691,1736233312716,-205.0,0.0001199,2]
[347945692,1736233312765,-745.61,0.00011991,2]
[347945693,1736233312809,-2045.53,0.00011991,2]
[347945694,1736233312850,-500.0,0.00011991,2]
[347945695,1736233312891,-572.27,0.00011991,2]
[347945696,1736233312933,-777.7,0.00011991,2]
[347945697,1736233312975,-500.0,0.00011991,2]
[347945698,1736233313018,-500.0,0.00011991,2]
[347945699,1736233313062,-634.16,0.00011991,2]
[347945700,1736233313104,-1511.39,0.00011991,2]
[347945701,1736233313148,-500.0,0.00011991,2]
[347945702,1736233313192,-504.52,0.00011991,2]
[347945703,1736233313244,-603.47,0.00011991,2]
[347945704,1736233313290,-500.0,0.00011991,2]
[347945705,1736233313333,-500.0,0.00011991,2]
[347945706,1736233313378,-631.58,0.00011991,2]
[347945707,1736233313423,-3005.19,0.00011991,2]
[347945708,1736233313473,-500.0,0.00011991,2]
[347945709,1736233313517,-1108.7,0.00011991,2]
[347945710,1736233313560,-678.22,0.00011991,2]
[347945711,1736233313604,-980.72,0.00011991,2]
[347945712,1736233313647,-516.92,0.00011991,2]
[347945713,1736233313690,-504.0,0.00011991,2]
[347945714,1736233313737,-500.0,0.00011991,2]
[347945715,1736233313781,-874.05,0.00011991,2]
[347945716,1736233313824,-500.0,0.00011991,2]
[347945717,1736233313866,-500.0,0.00011991,2]
[347945718,1736233313909,-94964.03643304,0.00011999,2]
[347945719,1736233313950,-44032.8624317,0.00012,7]
[347945720,1736233313991,-80795.0,0.00012,3]
[347945721,1736233314031,-2866.63525371,0.00012,2]
[347945722,1736233314073,-24940.34111239,0.00012,2]
[347945723,1736233314118,-500.0,0.00012,2]
[347945724,1736233314158,-10000.0,0.00012,5]
[347945725,1736233314201,-7874.63564456,0.00012,2]
[347945726,1736233314243,-5320.44815,0.00012,2]
[347945727,1736233314289,-205.0,0.00012,2]
[347945728,1736233314331,-5005.0,0.00012,2]
[347945729,1736233314374,-39893.33269622,0.00012,2]
[347945730,1736233314417,-180.908462,0.00012,2]
[347945731,1736233314460,-180.908462,0.00012,2]
[347945732,1736233314502,-8000.0,0.00012,5]
[347945733,1736233314546,-428.12,0.00012,2]
[347945734,1736233314590,-428.12,0.00012,2]
[347945735,1736233314632,-428.12,0.00012,2]
[347945736,1736233314675,-428.12,0.00012,2]
[347945737,1736233314716,-428.12,0.00012,2]
[347945738,1736233314758,-428.12,0.00012,2]
[347945739,1736233314801,-428.12,0.00012,2]
[347945740,1736233314842,-428.12,0.00012,2]
[347945741,1736233314883,-428.12,0.00012,2]
[347945742,1736233314922,-428.12,0.00012,2]
[347945743,1736233314964,-428.12,0.00012,2]
[347945744,1736233315008,-428.12,0.00012,2]
[347945745,1736233315051,-428.12,0.00012,2]
[347945746,1736233315348,-428.12,0.00012,2]
[347945747,1736233315390,-428.12,0.00012,2]
[347945748,1736233315431,-428.12,0.00012,2]
[347945749,1736233315470,-428.12,0.00012,2]
[347945750,1736233315511,-428.12,0.00012,2]
[347945751,1736233315553,-428.12,0.00012,2]
[347945752,1736233315592,-428.12,0.00012,2]
[347945753,1736233315631,-428.12,0.00012,2]
[347945754,1736233315670,-428.12,0.00012,2]
[347945755,1736233315710,-428.12,0.00012,2]
[347945756,1736233315748,-428.12,0.00012,2]
[347945757,1736233315786,-428.12,0.00012,2]
[347945758,1736233315823,-428.12,0.00012,2]
[347945759,1736233315861,-428.12,0.00012,2]
[347945760,1736233315897,-428.12,0.00012,2]
[347945761,1736233315936,-428.12,0.00012,2]
[347945762,1736233315974,-428.12,0.00012,2]
[347945763,1736233316011,-428.12,0.00012,2]
[347945764,1736233316048,-428.12,0.00012,2]
[347945765,1736233316086,-428.12,0.00012,2]
[347945766,1736233316124,-428.12,0.00012,2]
[347945767,1736233316160,-428.12,0.00012,2]
[347945768,1736233316195,-428.12,0.00012,2]
[347945769,1736233316235,-428.12,0.00012,2]
[347945770,1736233316276,-428.12,0.00012,2]
[347945771,1736233316316,-428.12,0.00012,2]
[347945772,1736233316357,-428.12,0.00012,2]
[347945773,1736233316397,-428.12,0.00012,2]
[347945774,1736233316437,-428.12,0.00012,2]
[347945775,1736233316477,-428.12,0.00012,2]
[347945776,1736233316517,-428.12,0.00012,2]
[347945777,1736233316557,-428.12,0.00012,2]
[347945778,1736233316596,-428.12,0.00012,2]
[347945779,1736233316636,-428.12,0.00012,2]
[347945780,1736233316675,-428.12,0.00012,2]
[347945781,1736233316713,-428.12,0.00012,2]
[347945782,1736233316751,-428.12,0.00012,2]
[347945783,1736233316788,-428.12,0.00012,2]
[347945784,1736233316825,-428.12,0.00012,2]
[347945785,1736233316864,-428.12,0.00012,2]
[347945786,1736233316901,-428.12,0.00012,2]
[347945787,1736233316939,-428.12,0.00012,2]
[347945788,1736233316977,-428.12,0.00012,2]
[347945789,1736233317016,-428.12,0.00012,2]
[347945790,1736233317055,-428.12,0.00012,2]
[347945791,1736233317091,-428.12,0.00012,2]
[347945792,1736233317128,-428.12,0.00012,2]
[347945793,1736233317165,-428.12,0.00012,2]
[347945794,1736233317204,-428.12,0.00012,2]
[347945795,1736233317243,-428.12,0.00012,2]
[347945796,1736233317282,-428.12,0.00012,2]
[347945797,1736233317321,-428.12,0.00012,2]
[347945798,1736233317359,-428.12,0.00012,2]
[347945799,1736233317399,-428.12,0.00012,2]
[347945800,1736233317436,-428.12,0.00012,2]
[347945801,1736233317477,-428.12,0.00012,2]
[347945802,1736233317516,-428.12,0.00012,2]
[347945803,1736233317554,-428.12,0.00012,2]
[347945804,1736233317592,-428.12,0.00012,2]
[347945805,1736233317630,-428.12,0.00012,2]
[347945806,1736233317669,-428.12,0.00012,2]
[347945807,1736233317708,-428.12,0.00012,2]
[347945808,1736233317751,-428.12,0.00012,2]
[347945809,1736233317791,-428.12,0.00012,2]
[347945810,1736233317832,-428.12,0.00012,2]
[347945811,1736233317873,-428.12,0.00012,2]
[347945812,1736233317913,-428.12,0.00012,2]
[347945813,1736233317955,-428.12,0.00012,2]
[347945814,1736233317995,-428.12,0.00012,2]
[347945815,1736233318045,-428.12,0.00012,2]
[347945816,1736233318090,-428.12,0.00012,2]
[347945817,1736233318131,-428.12,0.00012,2]
[347945818,1736233318174,-428.12,0.00012,2]
[347945819,1736233318214,-428.12,0.00012,2]
[347945820,1736233318262,-428.12,0.00012,2]
[347945821,1736233318305,-428.12,0.00012,2]
[347945822,1736233318346,-428.12,0.00012,2]
[347945823,1736233318390,-428.12,0.00012,2]
[347945824,1736233318434,-428.12,0.00012,2]
[347945825,1736233318479,-428.12,0.00012,2]
[347945826,1736233318520,-428.12,0.00012,2]
[347945827,1736233318561,-428.12,0.00012,2]
[347945828,1736233318603,-428.12,0.00012,2]
[347945829,1736233318642,-428.12,0.00012,2]
[347945830,1736233318681,-428.12,0.00012,2]
[347945831,1736233318721,-428.12,0.00012,2]
[347945832,1736233318764,-175.581124,0.00012035,2]
[347945833,1736233318808,-152.122056,0.00012035,2]
[347945834,1736233318864,-150.0,0.00012039,2]
[347945835,1736233318908,-202.0,0.0001205,2]
[347945836,1736233318958,-208.0,0.0001205,2]
[347945837,1736233319001,-200.0,0.00012055,2]
[347945838,1736233319049,-500.0,0.00012059,2]
[347945839,1736233319108,-193.93621951,0.00012059,2]
[347945840,1736233319166,-744.75,0.00012059,2]
[347945841,1736233319211,-288.42561702,0.00012059,2]
[347945842,1736233319262,-932.63226937,0.00012093,2]
[347945843,1736233319309,-1640.53620222,0.000121,2]
[347945844,1736233319354,-10000.68277259,0.000121,3]
[347945845,1736233319397,-3001.845,0.000121,9]
[347945846,1736233319445,-1000.0,0.00012104,2]
[347945847,1736233319492,-188.16,0.00012117,2]
[347945848,1736233319537,-152.0,0.0001212,3]
[347945849,1736233319583,-150.0,0.00012139,2]
[347945850,1736233319632,-150.0,0.00012156,2]
[347945851,1736233319679,-150.0,0.00012157,2]
[347945852,1736233319721,-10022.82203497,0.0001218,2]
[347945853,1736233319764,-489.81555376,0.00012186,2]
[347945854,1736233319806,-14527.02365861,0.00012186,2]
[347945855,1736233319848,-958605.0,0.0001219,3]
[347945856,1736233319891,-180.908462,0.0001219,2]
[347945857,1736233319930,-180.908462,0.0001219,2]
[347945858,1736233319975,-150.0,0.00012191,2]
[347945859,1736233320020,-150752.16209354,0.000122,2]
[347945860,1736233320061,-205.0,0.000122,2]
[347945861,1736233320104,-202.0,0.000122,2]
[347945862,1736233320146,-205.0,0.000122,2]
[347945863,1736233320188,-170.38744401,0.000122,2]
[347945864,1736233320233,-384.15525282,0.000122,2]
[347945865,1736233320277,-2575.49986557,0.000122,2]
[347945866,1736233320322,-4999.999999,0.00012223,3]
[347945867,1736233320368,-932.63226937,0.00012228,2]
[347945868,1736233320412,-202.0,0.0001224,2]
[347945869,1736233320456,-208.0,0.0001224,2]
[347945870,1736233320502,-150.0,0.00012241,2]
[347945871,1736233320547,-359.03,0.00012262,2]
[347945872,1736233320590,-594.02331452,0.00012262,2]
[347945873,1736233320634,-442.22489084,0.00012262,2]
[347945874,1736233320675,-524.26,0.00012262,2]
[347945875,1736233320716,-500.0,0.00012262,2]
[347945876,1736233320756,-953.09,0.00012262,2]
[347945877,1736233320797,-500.0,0.00012262,2]
[347945878,1736233320837,-500.0,0.00012262,2]
[347945879,1736233320877,-1206.25,0.00012262,2]
[347945880,1736233320918,-1460.97,0.00012262,2]
[347945881,1736233320960,-1400.09,0.00012262,2]
[347945882,1736233321001,-519.64,0.00012262,2]
[347945883,1736233321046,-554.56,0.00012262,2]
[347945884,1736233321088,-175.581124,0.00012263,2]
[347945885,1736233321130,-745.61,0.00012265,2]
[347945886,1736233321173,-2045.53,0.00012265,2]
[347945887,1736233321214,-500.0,0.00012265,2]
[347945888,1736233321260,-777.7,0.00012265,2]
[347945889,1736233321304,-500.0,0.00012265,2]
[347945890,1736233321348,-500.0,0.00012265,2]
[347945891,1736233321550,-634.16,0.00012265,2]
[347945892,1736233321594,-1511.39,0.00012265,2]
[347945893,1736233321641,-500.0,0.00012265,2]
[347945894,1736233321684,-504.52,0.00012265,2]